Workbook

Sheet RESUMO
A1: MINITÉRIO DA INTEGRAÇÃO E DO DESENVOLVIMENTO REGIONAL
A2: COMPANHIA DE DESENVOLVIMENTO DOS VALES DO SÃO FRANCISCO E DO PARNAÍBA
A3: 1° SUPERINTENDÊNCIA REGIONAL
A4: RESTAURAÇÃO DO SISTEMA DE ALIMENTAÇÃO DE ÁGUA E DOS TANQUES DA PISCICULTURA
A5: Local: | B5: TRÊS MARIAS-MG | C5: BDI Serviços: | D5: =BDI_Serviços!B32 -> 0.2665
A6: Data: | B6: 2024-10-11 | C6: BDI Materiais: | D6: =BDI_Fornecimento!B32 -> 0.153
A7: Bases: | B7: SINAPI 08-2024 | SICRO 04-2024 | Setop 07-2024 | C7: Revisão: | D7: 1
A9: ITEM | B9: DESCRIÇÃO | D9: TOTAL (R$)
A11: 1 | B11: ITENS DE RATEIO | D11: =ORÇAMENTO!I13 -> 71650.93
A13: 2 | B13: ARQUITETÔNICO | D13: =ORÇAMENTO!I22 -> 625183.8
A16: TOTAL | D16: =SUM(D11:D14) -> 696834.73
E22: =52941.71+D16 -> 749776.44

Sheet ORÇAMENTO
A1: MINITÉRIO DA INTEGRAÇÃO E DO DESENVOLVIMENTO REGIONAL | J1: BDI serviç. | K1: =1.2665 -> 1.2665
A2: COMPANHIA DE DESENVOLVIMENTO DOS VALES DO SÃO FRANCISCO E DO PARNAÍBA | J2: BDI mat. | K2: 1.153
A3: 1° SUPERINTENDÊNCIA REGIONAL
A4: RESTAURAÇÃO DO SISTEMA DE ALIMENTAÇÃO DE ÁGUA E DOS TANQUES DA PISCICULTURA
A5: Local: | B5: TRÊS MARIAS- MG | H5: BDI Serviços: | I5: =BDI_Serviços!B32 -> 0.2665
A6: Data: | B6: 2024-10-11 | H6: BDI Materiais: | I6: =BDI_Fornecimento!B32 -> 0.153
A7: Bases: | B7: SINAPI 08-2024 | SICRO 04-2024 | SETOP 07-2024 | H7: Revisão: | I7: 0
A9: ITEM | B9: BASE | C9: CÓDIGO | D9: DESCRIÇÃO | E9: UNID. | F9: QUANT. | G9: UNIT. (SEM BDI) | H9: UNIT. (COM BDI) | I9: TOTAL (R$)
A11: TOTAL PROJETO ARQUITETÔNICO | I11: =I13+I22 -> 696834.73
A13: 1 | D13: ITENS DE RATEIO | I13: =I15 -> 71650.93
A15: 1.1 | D15: INSTALAÇÕES PRELIMINARES | I15: =SUM(I16:I20) -> 71650.93
A16: 1.2 | B16: CPU | C16: =CPU!H8 -> CPU001 | D16: MOBILIZAÇÃO | E16: gb | F16: =1 -> 1 | G16: =(J16) -> 1055.58 | H16: =(J16*K$1) -> 1336.89207 | I16: =ROUND(F16*H16,2) -> 1336.89 | J16: 1055.58
A17: 1.3 | B17: CPU | C17: =CPU!H21 -> CPU002 | D17: DESMOBILIZAÇÃO | E17: gb | F17: =1 -> 1 | G17: =(J17) -> 1055.58 | H17: =(J17*K$1) -> 1336.89207 | I17: =ROUND(F17*H17,2) -> 1336.89 | J17: 1055.58
A18: 1.4 | B18: CPU | C18: =CPU!H34 -> CPU003 | D18: ADMINISTRAÇÃO LOCAL | E18: gb | F18: =1 -> 1 | G18: 37899.892 | H18: 48000.21322 | I18: =ROUND(F18*H18,2) -> 48000.21 | J18: =CPU!H54 -> 37899.892
A19: 1.5 | B19: CPU | C19: =CPU!H148 -> CPU010 | D19: VEÍCULO LEVE PICAPE 4x4 PARA VISITAS- OPERAÇÃO E MANUTENÇÃO | E19: mês | F19: 2 | G19: 6906.77 | H19: 8747.424205 | I19: =ROUND(F19*H19,2) -> 17494.85 | J19: =CPU!H159 -> 6906.77
A20: 1.6 | B20: SINAPI | C20: 103689 | D20: FORNECIMENTO E INSTALAÇÃO DE PLACA DE OBRA COM CHAPA GALVANIZADA E ESTRUTURA DE MADEIRA. | E20: m² | F20: =6 -> 6 | G20: =(J20) -> 458.23 | H20: 580.348295 | I20: 3482.09 | J20: 458.23
A22: 2 | D22: ARQUITETÔNICO | I22: =I24+I28+I39+I45+I50+I52+I55 -> 625183.8
A24: 2.1 | D24: SERVIÇOS PRELIMINARES | I24: =SUM(I25:I27) -> 8171.74
A25: 2.2 | B25: SINAPI | C25: 99814 | D25: LIMPEZA DE SUPERFÍCIE COM JATO DE ALTA PRESSÃO | E25: m² | F25: =1010.14 -> 1010.14 | G25: =J25 -> 1.84 | H25: =(J25*K$1) -> 2.33036 | I25: =ROUND(F25*H25,2) -> 2353.99 | J25: 1.84
A26: 2.3 | B26: CPU | C26: =CPU!H56 -> CPU004 | D26: LIMPEZA MANUAL DE ALVENARIA | E26: m² | F26: 267.92 | G26: =J26 -> 1.48993 | H26: =(J26*K$1) -> 1.886996345 | I26: =ROUND(F26*H26,2) -> 505.56 | J26: =CPU!H66 -> 1.48993
A27: 2.4 | B27: CPU | C27: =CPU!H177 -> CPU012 | D27: ESCARIFICAÇÃO COM REMOÇÃO MANUAL DE ARGAMASSA DETERIORADA. SEM REAPROVEITAMENTO, EXCLUSIVE RECOMPOSIÇÃO | E27: m² | F27: 328.36 | G27: 12.77375 | H27: 16.17795437 | I27: 5312.19 | J27: =CPU!H188 -> 12.77375
A28: 2.5 | D28: MOVIMENTO DE TERRA | I28: =SUM(I29:I38) -> 181528.16
A29: 2.6 | B29: SINAPI | C29: 101230 | D29: ESCAVAÇÃO VERTICAL PARA INFRAESTRUTURA, COM CARGA, DESCARGA E TRANSPORTE DE SOLO DE 1ª CATEGORIA, COM ESCAVADEIRA HIDRÁULICA (CAÇAMBA: 0,8 M³ / 111 HP), FROTA DE 3 CAMINHÕES BASCULANTES DE 14 M³, DMT ATÉ 1 KM E VELOCIDADE MÉDIA14 KM/H. | E29: m³ | F29: 935.23 | G29: =(J29) -> 11.32 | H29: =(J29*K$1) -> 14.33678 | I29: =ROUND(F29*H29,2) -> 13408.19 | J29: 11.32
A30: 2.7 | B30: CPU | C30: =CPU!H129 -> CPU009 | D30: =CPU!A131 -> ESCAVAÇÃO A CÉU ABERTO, EM OBRAS DE INFRAESTRUTURA, INCLUINDO CARGA, DESCARGA E TRANSPORTE, EM SOLO MOLE COM ESCAVADEIRA HIDRÁULICA (CAÇAMBA: 0,8 M³ / 111 HP) | E30: m³ | F30: 623.49 | G30: =(J30) -> 21.689219 | H30: =(J30*K$1) -> 27.46939586 | I30: =ROUND(F30*H30,2) -> 17126.89 | J30: =CPU!H146 -> 21.689219
A31: 2.8 | B31: SINAPI | C31: 96385 | D31: EXECUÇÃO E COMPACTAÇÃO DE ATERRO COM SOLO PREDOMINANTEMENTE ARGILOSO - EXCLUSIVE SOLO, ESCAVAÇÃO, CARGA E TRANSPORTE | E31: m³ | F31: 3913.5 | G31: 11.45 | H31: 14.501425 | I31: 56751.33 | J31: 11.45
A32: 2.9 | B32: SICRO | C32: 4815671 | D32: REATERRO E COMPACTAÇÃO COM SOQUETE VIBRATÓRIO | E32: m³ | F32: 231.86 | G32: 16.08 | H32: 20.36532 | I32: =ROUND(F32*H32,2) -> 4721.9 | J32: 16.08
A33: 2.10 | B33: SINAPI | C33: 100574 | D33: ESPALHAMENTO DE MATERIAL COM TRATOR DE ESTEIRAS. | E33: m³ | F33: 1001.38 | G33: 1.55 | H33: 1.963075 | I33: 1965.78 | J33: 1.55
A34: 2.11 | B34: SINAPI | C34: 95425 | D34: TRANSPORTE COM CAMINHÃO BASCULANTE DE 18 M³, EM VIA URBANA EM LEITO NATURAL | E34: m³km | F34: 15587.2 | G34: 2.38 | H34: 3.01427 | I34: 46984.03 | J34: 2.38
A35: 2.12 | B35: SINAPI | C35: 100940 | D35: TRANSPORTE COM CAMINHÃO BASCULANTE DE 18 M³, EM VIA INTERNA (DENTRO DO CANTEIRO - UNIDADE: M3XKM) | E35: m³km | F35: 1780.74 | G35: 5.71 | H35: 7.231715 | I35: 12877.8 | J35: 5.71
A36: 2.13 | B36: CPU | C36: =CPU!H87 -> CPU006 | D36: =CPU!A89 -> FORNECIMENTO DE SOLO ARGILOSO PARA ATERRO A SER ESCAVADO EM JAZIDA EXCLUSIVE ESCAVAÇÃO, CARGA E TRANSPORTE | E36: m³ | F36: 779.36 | G36: 26.26513 | H36: 33.26478714 | I36: 25925.24 | J36: =CPU!H97 -> 26.26513
A37: 2.14 | B37: CPU | C37: =CPU!H190 -> CPU013 | D37: =CPU!A192 -> RAMPA PROVISÓRIA PARA ACESSO DE EQIPAMENTOS AO FUNDO DOS TANQUES, EXECUTADA EM TALUDES, INCLUINDO DESCARGA E COMPACTAÇÃO, EXCLUSIVE ESCAVAÇÃO E TRANSPORTE DO SOLO | E37: m³ | F37: 30.57 | G37: 30.426 | H37: 38.534529 | I37: =ROUND(F37*H37,2) -> 1178 | J37: =CPU!H200 -> 30.426
A38: 2.15 | B38: CPU | C38: =CPU!H202 -> CPU014 | D38: =CPU!A204 -> RETIRADA DE RAMPA PROVISÓRIA PARA ACESSO DE EQUIPAMENTOS AO FUNDO DOS TANQUES | E38: m³ | F38: 30.57 | G38: 15.213 | H38: 19.2672645 | I38: =ROUND(F38*H38,2) -> 589 | J38: =CPU!H212 -> 15.213
A39: 2.16 | D39: ESTRUTURAS DE CONCRETO | I39: =SUM(I40:I44) -> 47333.41
A40: 2.17 | B40: SICRO | C40: 3106121 | D40: =UPPER("Fôrmas de tábuas de pinho - utilização de 3 vezes - confecção, instalação e retirada") -> FÔRMAS DE TÁBUAS DE PINHO - UTILIZAÇÃO DE 3 VEZES - CONFECÇÃO, INSTALAÇÃO E RETIRADA | E40: m² | F40: 300.65 | G40: =(J40) -> 88.22 | H40: =(J40*K$1) -> 111.73063 | I40: =ROUND(F40*H40,2) -> 33591.81 | J40: 88.22
A41: 2.18 | B41: SINAPI | C41: 94966 | D41: CONCRETO FCK = 30MPA, TRAÇO 1:2,1:2,5 (EM MASSA SECA DE CIMENTO/ AREIA MÉDIA/ BRITA 1) - PREPARO MECÂNICO COM BETONEIRA 400 L. | E41: m³ | F41: 11.03 | G41: =(J41) -> 552.44 | H41: =(J41*K$1) -> 699.66526 | I41: =ROUND(F41*H41,2) -> 7717.31 | J41: 552.44
A42: 2.19 | B42: SINAPI | C42: 103673 | D42: LANÇAMENTO COM USO DE BOMBA, ADENSAMENTO E ACABAMENTO DE CONCRETO EM ESTRUTURAS. | E42: m³ | F42: 11.03 | G42: 40.15 | H42: 50.849975 | I42: =ROUND(F42*H42,2) -> 560.88 | J42: 40.15
A43: 2.20 | B43: CPU | C43: =CPU!H161 -> CPU011 | D43: =CPU!A163 -> TRANSPORTE DE CONCRETO ATÉ O LOCAL DE APLICAÇÃO COM CARRINHO DE MÃO, EXCLUSIVE APLICAÇÃO | E43: m³Xm | F43: 2476.82 | G43: 1.4733696 | H43: 1.866022598 | I43: =ROUND(F43*H43,2) -> 4621.8 | J43: =CPU!H175 -> 1.4733696
A44: 2.21 | B44: SETOP | C44: ED-51134 | D44: TRANSPORTE DE MATERIAL DE QUALQUER NATUREZA COM CARRINHO DE MÃO, COM DISTÂNCIAS MAIORES QUE 50M E MENORES OU IGUAIS A 100M, INCLUSIVE CARGA/DESGARGA | E44: m³ | F44: 16.42 | G44: 40.47 | H44: 51.255255 | I44: =ROUND(F44*H44,2) -> 841.61 | J44: 40.47
A45: 2.22 | D45: REVESTIMENTOS | I45: =SUM(I46:I49) -> 336803.81
A46: 2.23 | B46: SINAPI | C46: 87879 | D46: CHAPISCO APLICADO EM ALVENARIAS E ESTRUTURAS DE CONCRETO INTERNAS, COM COLHER DE PEDREIRO. ARGAMASSA TRAÇO 1:3 COM PREPARO EM BETONEIRA 400L. | E46: m² | F46: 328.36 | G46: =(J46) -> 4.52 | H46: =(J46*K$1) -> 5.72458 | I46: =ROUND(F46*H46,2) -> 1879.72 | J46: 4.52
A47: 2.24 | B47: SETOP | C47: ED-50759 | D47: REBOCO COM ARGAMASSA, TRAÇO 1:7 (CIMENTO E AREIA), ESP. 20MM, APLICAÇÃO MANUAL, INCLUSIVE ARGAMASSA COM PREPARO MECANIZADO, EXCLUSIVE CHAPISCO | E47: m² | F47: 328.36 | G47: =(J47) -> 31.78 | H47: =(J47*K$1) -> 40.24937 | I47: =ROUND(F47*H47,2) -> 13216.28 | J47: 31.78
A48: 2.25 | B48: SINAPI | C48: 98553 | D48: IMPERMEABILIZAÇÃO DE SUPERFÍCIE COM MEMBRANA À BASE DE POLIURETANO, 2 DEMÃOS. | E48: m² | F48: 1099.26 | G48: 162.54 | H48: 205.85691 | I48: =ROUND(F48*H48,2) -> 226290.27 | J48: 162.54
A49: 2.26 | B49: CPU | C49: =CPU!H68 -> CPU005 | D49: =CPU!A70 -> REVESTIMENTO PRIMER EPÓXI | E49: m² | F49: 1099.26 | G49: 68.536608 | H49: 86.80161403 | I49: =ROUND(F49*H49,2) -> 95417.54 | J49: =CPU!H85 -> 68.536608
A50: 2.27 | D50: URBANIZAÇÃO | I50: =SUM(I51:I51) -> 3480.93
A51: 2.28 | B51: SINAPI | C51: 98504 | D51: PLANTIO DE GRAMA BATATAIS EM PLACAS. | E51: m² | F51: 193.69 | G51: =(J51) -> 14.19 | H51: =(J51*K$1) -> 17.971635 | I51: =ROUND(F51*H51,2) -> 3480.93 | J51: 14.19
A52: 2.29 | D52: ASSENTAMENTOS | I52: =SUM(I53:I54) -> 4697.31
A53: 2.30 | B53: CPU | C53: =CPU!H99 -> CPU007 | D53: =CPU!A101 -> ASSENTAMENTO DE TUBOS E CONEXÕES PARA BY-PASS, CONFORME PROJETO | E53: cj | F53: 1 | G53: =(J53) -> 3485.22912 | H53: =(J53*K$1) -> 4414.04268 | I53: =ROUND(F53*H53,2) -> 4414.04 | J53: =CPU!H110 -> 3485.22912
A54: 2.31 | B54: CPU | C54: =CPU!H112 -> CPU008 | D54: =CPU!A114 -> ASSENTAMENTO DE COMPORTA STOP LOG | E54: un | F54: 1 | G54: =(J54) -> 223.6662 | H54: =(J54*K$1) -> 283.2732423 | I54: =ROUND(F54*H54,2) -> 283.27 | J54: =CPU!H127 -> 223.6662
A55: 2.32 | D55: MATERIAIS | I55: =SUM(I56:I62) -> 43168.44
A56: 2.33 | B56: Cotação | D56: COMPORTA EM FIBRA DE VIDRO, TIPO STOP-LOG | E56: un | F56: 1 | G56: =(J56) -> 2936.231413 | H56: =(J56*K$2) -> 3385.474819 | I56: =ROUND(H56*F56,2) -> 3385.47 | J56: =1.0506052*2794.8 -> 2936.231413
A57: 2.34 | B57: Cotação | D57: TUBO EM POLIPROPILENO SOLDÁVEL, PN-10, DN 4" | E57: m | F57: 11 | G57: 171.2486476 | H57: 197.4496907 | I57: =ROUND(F57*H57,2) -> 2171.95 | J57: =1.0506052*163 -> 171.2486476
A58: 2.35 | B58: Cotação | D58: VÁLVULA ESFERA EM POLIPROPILENO SOLDÁVEL DN 4" | E58: un | F58: 1 | G58: 1680.96832 | H58: 1938.156473 | I58: 1938.16 | J58: =1.0506052*1600 -> 1680.96832
A59: 2.36 | B59: Cotação | D59: LUVA EM POLIPROPILENO SOLDÁVEL E COM ROSCA DN 4" | E59: un | F59: 67 | G59: 116.6171772 | H59: 134.4596053 | I59: 9008.79 | J59: =1.0506052*111 -> 116.6171772
A60: 2.37 | B60: Cotação | D60: ADAPTADOR ESPIGÃO COM ROSCA EXTERNA E ABRAÇADEIRAS DN 4" | E60: un | F60: 67 | G60: 26.16006948 | H60: 30.16256011 | I60: 2020.89 | J60: =1.0506052*24.9 -> 26.16006948
A61: 2.38 | B61: Cotação | D61: MANGUEIRA FLAT CHATA AZUL 4" | E61: m | F61: 823 | G61: 21.78773955 | H61: 25.12126371 | I61: 20674.8 | J61: =1.0506052*20.738275 -> 21.78773955
A62: 2.39 | B62: Cotação | D62: TÊ 90° GOMADO EM POLIPROPILENO SOLDÁVEL DN 4" | E62: un | F62: 21 | G62: 163.8944112 | H62: 188.9702561 | I62: 3968.38 | J62: =1.0506052*156 -> 163.8944112

Sheet CURVA ABC
A1: MINITÉRIO DA INTEGRAÇÃO E DO DESENVOLVIMENTO REGIONAL
A2: COMPANHIA DE DESENVOLVIMENTO DOS VALES DO SÃO FRANCISCO E DO PARNAÍBA
A3: 1° SUPERINTENDÊNCIA REGIONAL
A4: CURVA ABC
A5: Local: | B5: TRÊS MARIAS- MG | F5: =BDI_Serviços!B32 -> 0.2665
A6: Data: | B6: 2024-10-11 | F6: =BDI_Fornecimento!B32 -> 0.153
A7: Bases: | B7: SINAPI 08-2024 | SICRO 04-2024 | Setop 07-2024 | F7: 0
A9: ITEM | B9: DESCRIÇÃO | C9: VALOR TOTAL | D9: PORCENTAGEM | E9: PORCENTAGEM ACUMULADA | F9: CURVA | G9: SEPARAÇÃO | J9: CLASSIFICAÇÃO | K9: PORCENTAGEM | O9: CLASSIFICAÇÃO | P9: LIMITE | Q9: ITEM | R9: QUANTIDADE | S9: VALOR TOTAL | T9: QUANTIDADE PERCENTUAL | U9: IMPACTO
A10: 2.27 | B10: IMPERMEABILIZAÇÃO DE SUPERFÍCIE COM MEMBRANA À BASE DE POLIURETANO, 2 DEMÃOS. | C10: 226290.27 | D10: =C10/$C$47 -> 0.3247402293 | E10: =D10 -> 0.3247402293 | F10: =IF(E10<=$K$10, "A", IF(E10<=$K$11, "B", "C")) -> A | G10: =IF(F10<>F11, COUNTA($C$10:C10) - _xlfn.AGGREGATE(9, 6, $G9:G$9), NA()) ->  | J10: A | K10: 0.75 | O10: A | P10: =LARGE($C$10:$C$46,R10) -> 33591.81 | Q10: =INDEX($A$10:$A$46,MATCH(P10,$C$10:$C$46,0)) -> 2.19 | R10: =COUNTIF($F$10:$F$46,O10) -> 6 | S10: =SUMIF($F$10:$F$46,O10,$C$10:$C$46) -> 484960.22 | T10: =R10/SUM($R$10:$R$12) -> 0.1621621622 | U10: =S10/SUM($S$10:$S$12) -> 0.6959472585
A11: 2.28 | B11: =CPU!A70 -> REVESTIMENTO PRIMER EPÓXI | C11: 95417.54 | D11: 0.1369299432 | E11: =D11+E10 -> 0.4616701725 | F11: =IF(E11<=$K$10, "A", IF(E11<=$K$11, "B", "C")) -> A | G11: =IF(F11<>F12, COUNTA($C$10:C11) - _xlfn.AGGREGATE(9, 6, $G$9:G10), NA()) ->  | J11: B | K11: 0.95 | O11: B | P11: =LARGE($C$10:$C$46,SUM(R10:R11)) -> 4621.8 | Q11: =INDEX($A$10:$A$46,MATCH(P11,$C$10:$C$46,0)) -> 2.22 | R11: =COUNTIF($F$10:$F$46,O11) -> 12 | S11: =SUMIF($F$10:$F$46,O11,$C$10:$C$46) -> 174181.01 | T11: =R11/SUM($R$10:$R$12) -> 0.3243243243 | U11: =S11/SUM($S$10:$S$12) -> 0.2499602883
A12: 2.9 | B12: EXECUÇÃO E COMPACTAÇÃO DE ATERRO COM SOLO PREDOMINANTEMENTE ARGILOSO - EXCLUSIVE SOLO, ESCAVAÇÃO, CARGA E TRANSPORTE | C12: 56751.33 | D12: 0.08144159233 | E12: =D12+E11 -> 0.5431117648 | F12: A | G12: =IF(F12<>F13, COUNTA($C$10:C12) - _xlfn.AGGREGATE(9, 6, $G$9:G11), NA()) ->  | J12: C | K12: 1 | O12: C | P12: =LARGE($C$10:$C$46,SUM(R10:R12)) -> 283.27 | Q12: =INDEX($A$10:$A$46,MATCH(P12,$C$10:$C$46,0)) -> 2.33 | R12: =COUNTIF($F$10:$F$46,O12) -> 19 | S12: =SUMIF($F$10:$F$46,O12,$C$10:$C$46) -> 37693.5 | T12: 0.5135135135 | U12: 0.05409245317
A13: 2.12 | B13: TRANSPORTE COM CAMINHÃO BASCULANTE DE 18 M³, EM VIA URBANA EM LEITO NATURAL | C13: 46984.03 | D13: 0.06742492585 | E13: 0.6105366907 | F13: A | G13: =IF(F13<>F14, COUNTA($C$10:C13) - _xlfn.AGGREGATE(9, 6, $G$9:G12), NA()) -> 
A14: 2.19 | B14: =UPPER("Fôrmas de tábuas de pinho - utilização de 3 vezes - confecção, instalação e retirada") -> FÔRMAS DE TÁBUAS DE PINHO - UTILIZAÇÃO DE 3 VEZES - CONFECÇÃO, INSTALAÇÃO E RETIRADA | C14: 33591.81 | D14: 0.04820627984 | E14: 0.6587429705 | F14: A | G14: =IF(F14<>F15, COUNTA($C$10:C14) - _xlfn.AGGREGATE(9, 6, $G$9:G13), NA()) -> 
A15: 2.14 | B15: =CPU!A89 -> FORNECIMENTO DE SOLO ARGILOSO PARA ATERRO A SER ESCAVADO EM JAZIDA EXCLUSIVE ESCAVAÇÃO, CARGA E TRANSPORTE | C15: 25925.24 | D15: 0.03720428802 | E15: 0.6959472585 | F15: A | G15: =IF(F15<>F16, COUNTA($C$10:C15) - _xlfn.AGGREGATE(9, 6, $G$9:G14), NA()) -> 6
A16: 1.4 | B16: ADMINISTRAÇÃO LOCAL | C16: =ORÇAMENTO!I18 -> 48000.21 | D16: 0.06888320563 | E16: 0.7648304642 | F16: B | G16: =IF(F16<>F17, COUNTA($C$10:C16) - _xlfn.AGGREGATE(9, 6, $G$9:G15), NA()) -> 
A17: 2.40 | B17: MANGUEIRA FLAT CHATA AZUL 4" | C17: 20674.8 | D17: 0.02966958894 | E17: 0.7945000531 | F17: B | G17: =IF(F17<>F18, COUNTA($C$10:C17) - _xlfn.AGGREGATE(9, 6, $G$9:G16), NA()) -> 
A18: 1.5 | B18: VEÍCULO LEVE PICAPE 4x4 PARA VISITAS- OPERAÇÃO E MANUTENÇÃO | C18: =ORÇAMENTO!I19 -> 17494.85 | D18: 0.02510616829 | E18: 0.8196062214 | F18: B | G18: =IF(F18<>F19, COUNTA($C$10:C18) - _xlfn.AGGREGATE(9, 6, $G$9:G17), NA()) -> 
A19: 2.8 | B19: =CPU!A131 -> ESCAVAÇÃO A CÉU ABERTO, EM OBRAS DE INFRAESTRUTURA, INCLUINDO CARGA, DESCARGA E TRANSPORTE, EM SOLO MOLE COM ESCAVADEIRA HIDRÁULICA (CAÇAMBA: 0,8 M³ / 111 HP) | C19: 17126.89 | D19: 0.02457812342 | E19: 0.8441843448 | F19: B | G19: =IF(F19<>F20, COUNTA($C$10:C19) - _xlfn.AGGREGATE(9, 6, $G$9:G18), NA()) -> 
A20: 2.7 | B20: ESCAVAÇÃO VERTICAL PARA INFRAESTRUTURA, COM CARGA, DESCARGA E TRANSPORTE DE SOLO DE 1ª CATEGORIA, COM ESCAVADEIRA HIDRÁULICA (CAÇAMBA: 0,8 M³ / 111 HP), FROTA DE 3 CAMINHÕES BASCULANTES DE 14 M³, DMT ATÉ 1 KM E VELOCIDADE MÉDIA14 KM/H. | C20: 13408.19 | D20: 0.01924156392 | E20: 0.8634259088 | F20: B | G20: =IF(F20<>F21, COUNTA($C$10:C20) - _xlfn.AGGREGATE(9, 6, $G$9:G19), NA()) -> 
A21: 2.26 | B21: REBOCO COM ARGAMASSA, TRAÇO 1:7 (CIMENTO E AREIA), ESP. 20MM, APLICAÇÃO MANUAL, INCLUSIVE ARGAMASSA COM PREPARO MECANIZADO, EXCLUSIVE CHAPISCO | C21: 13216.28 | D21: 0.01896616146 | E21: 0.8823920702 | F21: B | G21: =IF(F21<>F22, COUNTA($C$10:C21) - _xlfn.AGGREGATE(9, 6, $G$9:G20), NA()) -> 
A22: 2.13 | B22: TRANSPORTE COM CAMINHÃO BASCULANTE DE 18 M³, EM VIA INTERNA (DENTRO DO CANTEIRO - UNIDADE: M3XKM) | C22: 12877.8 | D22: 0.01848042218 | E22: 0.9008724924 | F22: B | G22: =IF(F22<>F23, COUNTA($C$10:C22) - _xlfn.AGGREGATE(9, 6, $G$9:G21), NA()) -> 
A23: 2.38 | B23: LUVA EM POLIPROPILENO SOLDÁVEL E COM ROSCA DN 4" | C23: 9008.79 | D23: 0.01292815873 | E23: 0.9138006511 | F23: B | G23: =IF(F23<>F24, COUNTA($C$10:C23) - _xlfn.AGGREGATE(9, 6, $G$9:G22), NA()) -> 
A24: 2.20 | B24: CONCRETO FCK = 30MPA, TRAÇO 1:2,1:2,5 (EM MASSA SECA DE CIMENTO/ AREIA MÉDIA/ BRITA 1) - PREPARO MECÂNICO COM BETONEIRA 400 L. | C24: 7717.31 | D24: 0.01107480679 | E24: 0.9248754579 | F24: B | G24: =IF(F24<>F25, COUNTA($C$10:C24) - _xlfn.AGGREGATE(9, 6, $G$9:G23), NA()) -> 
A25: 2.4 | B25: ESCARIFICAÇÃO COM REMOÇÃO MANUAL DE ARGAMASSA DETERIORADA. SEM REAPROVEITAMENTO, EXCLUSIVE RECOMPOSIÇÃO | C25: 5312.19 | D25: 0.007623314068 | E25: 0.932498772 | F25: B | G25: =IF(F25<>F26, COUNTA($C$10:C25) - _xlfn.AGGREGATE(9, 6, $G$9:G24), NA()) -> 
A26: 2.10 | B26: REATERRO E COMPACTAÇÃO COM SOQUETE VIBRATÓRIO | C26: 4721.9 | D26: 0.006776212202 | E26: 0.9392749842 | F26: B | G26: =IF(F26<>F27, COUNTA($C$10:C26) - _xlfn.AGGREGATE(9, 6, $G$9:G25), NA()) -> 
A27: 2.22 | B27: =CPU!A163 -> TRANSPORTE DE CONCRETO ATÉ O LOCAL DE APLICAÇÃO COM CARRINHO DE MÃO, EXCLUSIVE APLICAÇÃO | C27: 4621.8 | D27: 0.006632562645 | E27: 0.9459075468 | F27: B | G27: =IF(F27<>F28, COUNTA($C$10:C27) - _xlfn.AGGREGATE(9, 6, $G$9:G26), NA()) -> 12
A28: 2.32 | B28: =CPU!A101 -> ASSENTAMENTO DE TUBOS E CONEXÕES PARA BY-PASS, CONFORME PROJETO | C28: 4414.04 | D28: 0.006334414474 | E28: 0.9522419613 | F28: C | G28: =IF(F28<>F29, COUNTA($C$10:C28) - _xlfn.AGGREGATE(9, 6, $G$9:G27), NA()) -> 
A29: 2.41 | B29: TÊ 90° GOMADO EM POLIPROPILENO SOLDÁVEL DN 4" | C29: 3968.38 | D29: 0.005694865409 | E29: 0.9579368267 | F29: C | G29: =IF(F29<>F30, COUNTA($C$10:C29) - _xlfn.AGGREGATE(9, 6, $G$9:G28), NA()) -> 
A30: 1.6 | B30: FORNECIMENTO E INSTALAÇÃO DE PLACA DE OBRA COM CHAPA GALVANIZADA E ESTRUTURA DE MADEIRA. | C30: 3482.09 | D30: 0.004997009836 | E30: 0.9629338365 | F30: C | G30: =IF(F30<>F31, COUNTA($C$10:C30) - _xlfn.AGGREGATE(9, 6, $G$9:G29), NA()) -> 
A31: 2.30 | B31: PLANTIO DE GRAMA BATATAIS EM PLACAS. | C31: 3480.93 | D31: 0.004995345166 | E31: 0.9679291817 | F31: C | G31: =IF(F31<>F32, COUNTA($C$10:C31) - _xlfn.AGGREGATE(9, 6, $G$9:G30), NA()) -> 
A32: 2.35 | B32: COMPORTA EM FIBRA DE VIDRO, TIPO STOP-LOG | C32: 3385.47 | D32: 0.00485835429 | E32: 0.972787536 | F32: C | G32: =IF(F32<>F33, COUNTA($C$10:C32) - _xlfn.AGGREGATE(9, 6, $G$9:G31), NA()) -> 
A33: 2.2 | B33: LIMPEZA DE SUPERFÍCIE COM JATO DE ALTA PRESSÃO | C33: 2353.99 | D33: 0.00337811808 | E33: 0.9761656541 | F33: C | G33: =IF(F33<>F34, COUNTA($C$10:C33) - _xlfn.AGGREGATE(9, 6, $G$9:G32), NA()) -> 
A34: 2.36 | B34: TUBO EM POLIPROPILENO SOLDÁVEL, PN-10, DN 4" | C34: 2171.95 | D34: 0.003116879665 | E34: 0.9792825338 | F34: C | G34: =IF(F34<>F35, COUNTA($C$10:C34) - _xlfn.AGGREGATE(9, 6, $G$9:G33), NA()) -> 
A35: 2.39 | B35: ADAPTADOR ESPIGÃO COM ROSCA EXTERNA E ABRAÇADEIRAS DN 4" | C35: 2020.89 | D35: 0.002900099425 | E35: 0.9821826332 | F35: C | G35: =IF(F35<>F36, COUNTA($C$10:C35) - _xlfn.AGGREGATE(9, 6, $G$9:G34), NA()) -> 
A36: 2.11 | B36: ESPALHAMENTO DE MATERIAL COM TRATOR DE ESTEIRAS. | C36: 1965.78 | D36: 0.002821013241 | E36: 0.9850036464 | F36: C | G36: =IF(F36<>F37, COUNTA($C$10:C36) - _xlfn.AGGREGATE(9, 6, $G$9:G35), NA()) -> 
A37: 2.37 | B37: VÁLVULA ESFERA EM POLIPROPILENO SOLDÁVEL DN 4" | C37: 1938.16 | D37: 0.00278137687 | E37: 0.9877850233 | F37: C | G37: =IF(F37<>F38, COUNTA($C$10:C37) - _xlfn.AGGREGATE(9, 6, $G$9:G36), NA()) -> 
A38: 2.25 | B38: CHAPISCO APLICADO EM ALVENARIAS E ESTRUTURAS DE CONCRETO INTERNAS, COM COLHER DE PEDREIRO. ARGAMASSA TRAÇO 1:3 COM PREPARO EM BETONEIRA 400L. | C38: 1879.72 | D38: 0.002697511934 | E38: 0.9904825352 | F38: C | G38: =IF(F38<>F39, COUNTA($C$10:C38) - _xlfn.AGGREGATE(9, 6, $G$9:G37), NA()) -> 
A39: 1.2 | B39: MOBILIZAÇÃO | C39: 1336.89 | D39: 0.001918518039 | E39: 0.9924010533 | F39: C | G39: =IF(F39<>F40, COUNTA($C$10:C39) - _xlfn.AGGREGATE(9, 6, $G$9:G38), NA()) -> 
A40: 1.3 | B40: DESMOBILIZAÇÃO | C40: 1336.89 | D40: 0.001918518039 | E40: 0.9943195713 | F40: C | G40: =IF(F40<>F41, COUNTA($C$10:C40) - _xlfn.AGGREGATE(9, 6, $G$9:G39), NA()) -> 
A41: 2.15 | B41: =CPU!A192 -> RAMPA PROVISÓRIA PARA ACESSO DE EQIPAMENTOS AO FUNDO DOS TANQUES, EXECUTADA EM TALUDES, INCLUINDO DESCARGA E COMPACTAÇÃO, EXCLUSIVE ESCAVAÇÃO E TRANSPORTE DO SOLO | C41: 1178 | D41: 0.001690501276 | E41: 0.9960100726 | F41: C | G41: =IF(F41<>F42, COUNTA($C$10:C41) - _xlfn.AGGREGATE(9, 6, $G$9:G40), NA()) -> 
A42: 2.23 | B42: TRANSPORTE DE MATERIAL DE QUALQUER NATUREZA COM CARRINHO DE MÃO, COM DISTÂNCIAS MAIORES QUE 50M E MENORES OU IGUAIS A 100M, INCLUSIVE CARGA/DESGARGA | C42: 841.61 | D42: 0.001207761272 | E42: 0.9972178338 | F42: C | G42: =IF(F42<>F43, COUNTA($C$10:C42) - _xlfn.AGGREGATE(9, 6, $G$9:G41), NA()) -> 
A43: 2.16 | B43: =CPU!A204 -> RETIRADA DE RAMPA PROVISÓRIA PARA ACESSO DE EQUIPAMENTOS AO FUNDO DOS TANQUES | C43: 589 | D43: 0.0008452506378 | E43: 0.9980630845 | F43: C | G43: =IF(F43<>F44, COUNTA($C$10:C43) - _xlfn.AGGREGATE(9, 6, $G$9:G42), NA()) -> 
A44: 2.21 | B44: LANÇAMENTO COM USO DE BOMBA, ADENSAMENTO E ACABAMENTO DE CONCRETO EM ESTRUTURAS. | C44: 560.88 | D44: 0.0008048967364 | E44: 0.9988679812 | F44: C | G44: =IF(F44<>F45, COUNTA($C$10:C44) - _xlfn.AGGREGATE(9, 6, $G$9:G43), NA()) -> 
A45: 2.3 | B45: LIMPEZA MANUAL DE ALVENARIA | C45: 505.56 | D45: 0.0007255091892 | E45: 0.9995934904 | F45: C | G45: =IF(F45<>F46, COUNTA($C$10:C45) - _xlfn.AGGREGATE(9, 6, $G$9:G44), NA()) -> 
A46: 2.33 | B46: =CPU!A114 -> ASSENTAMENTO DE COMPORTA STOP LOG | C46: 283.27 | D46: 0.0004065095894 | E46: 1 | F46: C | G46: =IF(F46<>F47, COUNTA($C$10:C46) - _xlfn.AGGREGATE(9, 6, $G$9:G45), NA()) -> 19
B47: TOTAL | C47: =SUM(C10:C46) -> 696834.73 | G47: =IF(F47<>F48, COUNTA($C$10:C47) - _xlfn.AGGREGATE(9, 6, $G$9:G46), NA()) -> 
G48: =IF(F48<>F49, COUNTA($C$10:C48) - _xlfn.AGGREGATE(9, 6, $G$9:G47), NA()) -> 
G49: =IF(F49<>F50, COUNTA($C$10:C49) - _xlfn.AGGREGATE(9, 6, $G$9:G48), NA()) -> 
G50: =IF(F50<>F51, COUNTA($C$10:C50) - _xlfn.AGGREGATE(9, 6, $G$9:G49), NA()) -> 
G51: =IF(F51<>F52, COUNTA($C$10:C51) - _xlfn.AGGREGATE(9, 6, $G$9:G50), NA()) -> 

Sheet CPU
A1: MINISTÉRIO DO DESENVOLVIMENTO REGIONAL - MDR
A2: COMPANHIA DE DESENVOLVIMENTO DOS VALES DO SÃO FRANCISCO E DO PARNAÍBA
A3: 1ª SUPERINTENDÊNCIA REGIONAL
A4: RESTAURAÇÃO DO SISTEMA DE ALIMENTAÇÃO DE ÁGUA E DOS TANQUES DA PISCICULTURA
A5: Local: | B5: TRÊS MARIAS - MG | G5: BDI Serviços: | H5: =BDI_Serviços!G5 -> 0.2665
A6: Data: | B6: 2024-10-11 | G6: BDI Materiais: | H6: 0.153
A7: Bases: | B7: SINAPI 08-2024 | SICRO 04-2024 | SETOP 07-2024 | G7: Revisão: | H7: 1
A8: COMPOSIÇÃO DE PREÇO UNITÁRIO | H8: CPU001
A9: DESCRIÇÃO DO SERVIÇO | G9: DATA BASE: | H9: 2023-08-01
A10: MOBILIZAÇÃO | G10: UNIDADE: | H10: gb
A11: EQUIPAMENTO
A12: BASE | B12: CÓDIGO | C12: DISCRIMINAÇÃO | D12: UNID. | E12: QUANT. | F12: P.UN.PROD | G12: P.UN.IMPR | H12: P.TOTAL
A13: SINAPI | B13: 5811 | C13: CAMINHÃO BASCULANTE 6 M3, PESO BRUTO TOTAL 16.000 KG, CARGA ÚTIL MÁXIMA 13.071 KG, DISTÂNCIA ENTRE EIXOS 4,80 M, POTÊNCIA 230 CV INCLUSIVE CAÇAMBA METÁLICA - CHP DIURNO. | D13: h | E13: 3 | F13: 202.77 | H13: =E13*F13+E13*G13 -> 608.31
A14: SINAPI | B14: 5678 | C14: RETROESCAVADEIRA SOBRE RODAS COM CARREGADEIRA, TRAÇÃO 4X4, POTÊNCIA LÍQ. 88 HP, CAÇAMBA CARREG. CAP. MÍN. 1 M3, CAÇAMBA RETRO CAP. 0,26 M3, PESO OPERACIONAL MÍN. 6.674 KG, PROFUNDIDADE ESCAVAÇÃO MÁX. 4,37 M - CHP DIURNO. | D14: h | E14: 3 | F14: 149.09 | H14: =E14*F14+E14*G14 -> 447.27
G15: SUB-TOTAL | H15: =SUM(H13:H14) -> 1055.58
C16: PRODUÇÃO DA EQUIPE | D16: 1 | G16: CUSTO | H16: =H15+H11 -> 1055.58
A17: TOTAL - R$ | H17: =H16/D16 -> 1055.58
A18: BDI % | H18: 1
A19: TOTAL DO SERVIÇO - R$ | H19: =H17*H18 -> 1055.58
A21: COMPOSIÇÃO DE PREÇO UNITÁRIO | H21: CPU002
A22: DESCRIÇÃO DO SERVIÇO | G22: DATA BASE: | H22: 2023-08-01
A23: DESMOBILIZAÇÃO | G23: UNIDADE: | H23: gb
A24: EQUIPAMENTO
A25: BASE | B25: CÓDIGO | C25: DISCRIMINAÇÃO | D25: UNID. | E25: QUANT. | F25: P.UN.PROD | G25: P.UN.IMPR | H25: P.TOTAL
A26: SINAPI | B26: 5811 | C26: CAMINHÃO BASCULANTE 6 M3, PESO BRUTO TOTAL 16.000 KG, CARGA ÚTIL MÁXIMA 13.071 KG, DISTÂNCIA ENTRE EIXOS 4,80 M, POTÊNCIA 230 CV INCLUSIVE CAÇAMBA METÁLICA - CHP DIURNO. | D26: h | E26: 3 | F26: 202.77 | H26: =E26*F26+E26*G26 -> 608.31
A27: SINAPI | B27: 5678 | C27: RETROESCAVADEIRA SOBRE RODAS COM CARREGADEIRA, TRAÇÃO 4X4, POTÊNCIA LÍQ. 88 HP, CAÇAMBA CARREG. CAP. MÍN. 1 M3, CAÇAMBA RETRO CAP. 0,26 M3, PESO OPERACIONAL MÍN. 6.674 KG, PROFUNDIDADE ESCAVAÇÃO MÁX. 4,37 M - CHP DIURNO. | D27: h | E27: 3 | F27: 149.09 | H27: =E27*F27+E27*G27 -> 447.27
G28: SUB-TOTAL | H28: =SUM(H26:H27) -> 1055.58
C29: PRODUÇÃO DA EQUIPE | D29: 1 | G29: CUSTO | H29: =H28+H24 -> 1055.58
A30: TOTAL - R$ | H30: =H29/D29 -> 1055.58
A31: BDI % | H31: 1
A32: TOTAL DO SERVIÇO - R$ | H32: =H30*H31 -> 1055.58
A34: COMPOSIÇÃO DE PREÇO UNITÁRIO | H34: CPU003
A35: DESCRIÇÃO DO SERVIÇO | G35: DATA BASE: | H35: 2023-08-01
A36: ADMINISTRAÇÃO LOCAL | G36: UNIDADE: | H36: gb
A37: MATERIAL
A38: BASE | B38: CÓDIGO | C38: DISCRIMINAÇÃO | D38: UNI | E38: QUANT. | G38: P.UNIT. | H38: P.TOTAL
A39: MERCADO | C39: TELEFONE E INTERNET | D39: mês | E39: 2 | G39: 104.96 | H39: =E39*G39 -> 209.92
A40: MERCADO | C40: MATERIAL PARA ESCRITÓRIO | D40: mês | E40: 2 | G40: 157.59 | H40: =E40*G40 -> 315.18
A41: MERCADO | C41: MATERIAL DE LIMPEZA | D41: mês | E41: 2 | G41: 52.53 | H41: =E41*G41 -> 105.06
A42: SUB-TOTAL | H42: =SUM(H39:H41) -> 630.16
A43: MÃO DE OBRA
A44: BASE | B44: CÓDIGO | C44: DISCRIMINAÇÃO | D44: UNI | E44: QUANT. | G44: P.UNIT. | H44: P.TOTAL
A45: SINAPI | B45: 93565 | C45: ENGENHEIRO CIVIL DE OBRA PLENO (MENSALISTA) | D45: mês | E45: 0.7 | G45: 20794.31 | H45: =G45*E45 -> 14556.017 | J45: 0.8 | K45: =J45*1.5 -> 1.2
A46: SINAPI | B46: 40819 | C46: MESTRE DE OBRAS (MENSALISTA) | D46: mês | E46: 0.9 | G46: 14752.75 | H46: =E46*G46 -> 13277.475 | J46: 1 | K46: =J46*1.5 -> 1.5
A47: SINAPI | B47: 40812 | C47: AUXILIAR DE ESCRITORIO (MENSALISTA) | D47: mês | E47: 1.8 | G47: 3149.3 | H47: =E47*G47 -> 5668.74 | J47: 2 | K47: 3
A48: SINAPI | B48: 40943 | C48: TECNICO EM SEGURANCA DO TRABALHO (HORISTA) | D48: h | E48: 75 | G48: 35.38 | H48: =E48*G48 -> 2653.5 | J48: 88 | K48: 132
A49: SICRO 04-2023 | B49: E9134 | C49: MINIÔNIBUS COM CAPACIDADE PARA 30 PASSAGEIROS - 111 KW - MÃO DE OBRA DE OPERAÇÃO | D49: h | E49: 40 | G49: 27.85 | H49: =E49*G49 -> 1114 | J49: 44 | K49: 66
G50: SUB-TOTAL | H50: =SUM(H45:H49) -> 37269.732
C51: PRODUÇÃO DA EQUIPE | D51: 1 | G51: CUSTO | H51: =H50+H42 -> 37899.892
A52: TOTAL - R$ | H52: =H51/D51 -> 37899.892
A53: BDI % | H53: 1
A54: TOTAL DO SERVIÇO - R$ | H54: =H52*H53 -> 37899.892
A56: COMPOSIÇÃO DE PREÇO UNITÁRIO | H56: CPU004
A57: DESCRIÇÃO DO SERVIÇO | G57: DATA BASE: | H57: 2023-08-01
A58: LIMPEZA MANUAL DE ALVENARIA | G58: UNIDADE: | H58: m²
A59: MÃO DE OBRA
A60: BASE | B60: CÓDIGO | C60: DISCRIMINAÇÃO | D60: UNI | E60: QUANT. | G60: P.UNIT. | H60: P.TOTAL
A61: SINAPI | B61: 88316 | C61: SERVENTE COM ENCARGOS COMPLEMENTARES | D61: h | E61: 0.073 | G61: 20.41 | H61: =E61*G61 -> 1.48993
A62: SUB-TOTAL | H62: =SUM(H61:H61) -> 1.48993
A63: PRODUÇÃO DA EQUIPE | D63: 1 | E63: CUSTO | H63: =H62 -> 1.48993
A64: TOTAL - R$ | H64: =H63/D63 -> 1.48993
A65: BDI % | H65: 1
A66: TOTAL DO SERVIÇO - R$ | H66: =H64*H65 -> 1.48993
A68: COMPOSIÇÃO DE PREÇO UNITÁRIO | H68: CPU005
A69: DESCRIÇÃO DO SERVIÇO | G69: DATA BASE: | H69: 2023-08-01
A70: REVESTIMENTO PRIMER EPÓXI | G70: UNIDADE: | H70: m²
A71: MATERIAL
A72: BASE | B72: CÓDIGO | C72: DISCRIMINAÇÃO | D72: UNI | E72: QUANT. | G72: P.UNIT. | H72: P.TOTAL
A73: SINAPI | B73: 5330 | C73: DILUENTE EPOXI | D73: l | E73: 0.064 | G73: 69.16 | H73: =E73*G73 -> 4.42624
A74: SINAPI | B74: 153 | C74: REVESTIMENTO EPOXI DE ALTA RESISTENCIA QUIMICA, ISENTO DE SOLVENTES, BICOMPONENTE | D74: l | E74: 0.322 | G74: 84.7 | H74: =E74*G74 -> 27.2734
A75: SINAPI | B75: 44072 | C75: PRIMER EPOXI / EPOXIDICO | D75: l | E75: 0.2016 | G75: 137.98 | H75: =E75*G75 -> 27.816768
A76: SUB-TOTAL | H76: =SUM(H73:H75) -> 59.516408
A77: MÃO DE OBRA
A78: BASE | B78: CÓDIGO | C78: DISCRIMINAÇÃO | D78: UNI | E78: QUANT. | G78: P.UNIT. | H78: P.TOTAL
A79: SINAPI | B79: 88316 | C79: SERVENTE COM ENCARGOS COMPLEMENTARES | D79: h | E79: 0.275 | G79: 20.41 | H79: =E79*G79 -> 5.61275
A80: SINAPI | B80: 88310 | C80: PINTOR COM ENCARGOS COMPLEMENTARES | D80: h | E80: 0.115 | G80: 29.63 | H80: =E80*G80 -> 3.40745
A81: SUB-TOTAL | H81: =SUM(H79:H80) -> 9.0202
A82: PRODUÇÃO DA EQUIPE | D82: 1 | E82: CUSTO | H82: =H81+H76 -> 68.536608
A83: TOTAL - R$ | H83: =H82/D82 -> 68.536608
A84: BDI % | H84: 1
A85: TOTAL DO SERVIÇO - R$ | H85: =H83*H84 -> 68.536608
A87: COMPOSIÇÃO DE PREÇO UNITÁRIO | H87: CPU006
A88: DESCRIÇÃO DO SERVIÇO | G88: DATA BASE: | H88: 2022-09-22
A89: FORNECIMENTO DE SOLO ARGILOSO PARA ATERRO A SER ESCAVADO EM JAZIDA EXCLUSIVE ESCAVAÇÃO, CARGA E TRANSPORTE | G89: UNIDADE: | H89: m³
A90: MATERIAL
A91: BASE | B91: CÓDIGO | C91: DISCRIMINAÇÃO | D91: UNI | E91: QUANT. | G91: P.UNIT. | H91: P.TOTAL
A92: Cotação | C92: FORNECIMENTO DE SOLO PREDOMINANTEMENTE ARGILOSO PARA ATERRO, DISPONÍVEL EM JAZIDA A 20KM DE DISTÂNCIA DO LOCAL DA OBRA , SEM INCLUIR ESCAVAÇÃO, CARGA E TRANSPORTE | D92: m³ | E92: 1 | G92: 25 | H92: =E92*G92 -> 25
A93: SUB-TOTAL | H93: =SUM(H92:H92) -> 25
A94: PRODUÇÃO DA EQUIPE | D94: 1 | E94: CUSTO | H94: =H93 -> 25
A95: TOTAL - R$ | H95: =H94/D94*1.0506052 -> 26.26513
A96: BDI % | H96: 1
A97: TOTAL DO SERVIÇO - R$ | H97: =H95*H96 -> 26.26513
A99: COMPOSIÇÃO DE PREÇO UNITÁRIO | H99: CPU007
A100: DESCRIÇÃO DO SERVIÇO | G100: DATA BASE: | H100: 2023-08-01
A101: ASSENTAMENTO DE TUBOS E CONEXÕES PARA BY-PASS, CONFORME PROJETO | G101: UNIDADE: | H101: cj
A102: MÃO DE OBRA
A103: BASE | B103: CÓDIGO | C103: DISCRIMINAÇÃO | D103: UNI | E103: QUANT. | G103: P.UNIT. | H103: P.TOTAL
A104: SINAPI | B104: 88316 | C104: SERVENTE COM ENCARGOS COMPLEMENTARES | D104: h | E104: 72.928 | G104: 20.41 | H104: =E104*G104 -> 1488.46048
A105: SINAPI | B105: 88267 | C105: ENCANADOR OU BOMBEIRO HIDRÁULICO COM ENCARGOS COMPLEMENTARES | D105: h | E105: 72.928 | G105: 27.38 | H105: =E105*G105 -> 1996.76864
A106: SUB-TOTAL | H106: =SUM(H104:H105) -> 3485.22912
A107: PRODUÇÃO DA EQUIPE | D107: 1 | E107: CUSTO | H107: =H106 -> 3485.22912
A108: TOTAL - R$ | H108: =H107/D107 -> 3485.22912
A109: BDI % | H109: 1
A110: TOTAL DO SERVIÇO - R$ | H110: =H108*H109 -> 3485.22912
A112: COMPOSIÇÃO DE PREÇO UNITÁRIO | H112: CPU008
A113: DESCRIÇÃO DO SERVIÇO | G113: DATA BASE: | H113: 2023-08-01
A114: ASSENTAMENTO DE COMPORTA STOP LOG | G114: UNIDADE: | H114: un
A115: SERVIÇOS - COMPOSIÇÕES AUXILIARES
A116: BASE | B116: CÓDIGO | C116: DISCRIMINAÇÃO | D116: UNI | E116: QUANT. | G116: P.UNIT. | H116: P.TOTAL
A117: SINAPI | B117: 100480 | C117: ARGAMASSA TRAÇO 1:3 (EM VOLUME DE CIMENTO E AREIA MÉDIA ÚMIDA) COM ADIÇÃO DE IMPERMEABILIZANTE, PREPARO MANUAL. | D117: m³ | E117: 0.105 | G117: 816.44 | H117: =E117*G117 -> 85.7262
A118: SUB-TOTAL | H118: =SUM(H117) -> 85.7262
A119: MÃO DE OBRA
A120: BASE | B120: CÓDIGO | C120: DISCRIMINAÇÃO | D120: UNI | E120: QUANT. | G120: P.UNIT. | H120: P.TOTAL
A121: SINAPI | B121: 88316 | C121: SERVENTE COM ENCARGOS COMPLEMENTARES | D121: h | E121: 4 | G121: 20.41 | H121: =E121*G121 -> 81.64
A122: SINAPI | B122: 88309 | C122: PEDREIRO COM ENCARGOS COMPLEMENTARES | D122: h | E122: 2 | G122: 28.15 | H122: =E122*G122 -> 56.3
A123: SUB-TOTAL | H123: =SUM(H121:H122) -> 137.94
A124: PRODUÇÃO DA EQUIPE | D124: 1 | E124: CUSTO | H124: =H123+H118 -> 223.6662
A125: TOTAL - R$ | H125: =H124/D124 -> 223.6662
A126: BDI % | H126: 1
A127: TOTAL DO SERVIÇO - R$ | H127: =H125*H126 -> 223.6662
A129: COMPOSIÇÃO DE PREÇO UNITÁRIO | H129: CPU009
A130: DESCRIÇÃO DO SERVIÇO | G130: DATA BASE: | H130: 2023-08-01
A131: ESCAVAÇÃO A CÉU ABERTO, EM OBRAS DE INFRAESTRUTURA, INCLUINDO CARGA, DESCARGA E TRANSPORTE, EM SOLO MOLE COM ESCAVADEIRA HIDRÁULICA (CAÇAMBA: 0,8 M³ / 111 HP) | G131: UNIDADE: | H131: m³
A132: EQUIPAMENTOS
A133: BASE | B133: CÓDIGO | C133: DISCRIMINAÇÃO | D133: UNI | E133: QUANT. | G133: P.UNIT. | H133: P.TOTAL
A134: SINAPI | B134: 5631 | C134: ESCAVADEIRA HIDRÁULICA SOBRE ESTEIRAS, CAÇAMBA 0,80 M3, PESO OPERACIONAL 1 7 T, POTENCIA BRUTA 111 HP - CHP DIURNO. | D134: chp | E134: 0.0402 | G134: 212 | H134: =E134*G134 -> 8.5224
A135: SINAPI | B135: 5632 | C135: ESCAVADEIRA HIDRÁULICA SOBRE ESTEIRAS, CAÇAMBA 0,80 M3, PESO OPERACIONAL 1 7 T, POTENCIA BRUTA 111 HP - CHI DIURNO. | D135: chi | E135: 0.0437 | G135: 93.43 | H135: =E135*G135 -> 4.082891
A136: SINAPI | B136: 89876 | C136: CAMINHÃO BASCULANTE 14 M3, COM CAVALO MECÂNICO DE CAPACIDADE MÁXIMA DE TRAÇÃO COMBINADO DE 36000 KG, POTÊNCIA 286 CV, INCLUSIVE SEMIREBOQUE COM CAÇAMBA METÁLICA - CHP DIURNO. | D136: chp | E136: 0.0228 | G136: 334.1 | H136: =E136*G136 -> 7.61748
A137: SINAPI | B137: 89877 | C137: CAMINHÃO BASCULANTE 14 M3, COM CAVALO MECÂNICO DE CAPACIDADE MÁXIMA DE TRAÇÃO COMBINADO DE 36000 KG, POTÊNCIA 286 CV, INCLUSIVE SEMIREBOQUE COM CAÇAMBA METÁLICA - CHI DIURNO. | D137: chi | E137: 0.0132 | G137: 92.54 | H137: =E137*G137 -> 1.221528
A138: SUB-TOTAL | H138: =SUM(H134:H137) -> 21.444299
A139: MÃO DE OBRA
A140: BASE | B140: CÓDIGO | C140: DISCRIMINAÇÃO | D140: UNI | E140: QUANT. | G140: P.UNIT. | H140: P.TOTAL
A141: SINAPI | B141: 88316 | C141: SERVENTE COM ENCARGOS COMPLEMENTARES | D141: h | E141: 0.012 | G141: 20.41 | H141: =E141*G141 -> 0.24492
A142: SUB-TOTAL | H142: =SUM(H141:H141) -> 0.24492
A143: PRODUÇÃO DA EQUIPE | D143: 1 | E143: CUSTO | H143: =H142+H138 -> 21.689219
A144: TOTAL - R$ | H144: =H143/D143 -> 21.689219
A145: BDI % | H145: 1
A146: TOTAL DO SERVIÇO - R$ | H146: =H144*H145 -> 21.689219
A148: COMPOSIÇÃO DE PREÇO UNITÁRIO | H148: CPU010
A149: DESCRIÇÃO DO SERVIÇO | G149: DATA BASE: | H149: 2023-04-01
A150: VEÍCULO LEVE PICAPE 4x4 PARA VISITAS - OPERAÇÃO E MANUTENÇÃO | G150: UNIDADE: | H150: mês
A151: EQUIPAMENTOS
A152: BASE | B152: CÓDIGO | C152: DISCRIMINAÇÃO | D152: UNI | E152: QUANT. | F152: P.UN.PROD | G152: P.UNIT. | H152: P.TOTAL
A153: SICRO | B153: E9684 | C153: VEÍCULO LEVE PICAPE 4 X 4 COM CAPACIDADE DE 1,10 T - 147 KW | D153: chp | E153: 44 | F153: 50.49 | G153: 106.11 | H153: =(E153*G153)+(F153*E153) -> 6890.4
A154: SICRO | B154: E9684 | C154: VEÍCULO LEVE PICAPE 4 X 4 COM CAPACIDADE DE 1,10 T - 147 KW - MANUTENÇÃO | D154: h | E154: 1 | G154: 16.37 | H154: =E154*G154 -> 16.37
A155: SUB-TOTAL | H155: =SUM(H153:H154) -> 6906.77
A156: PRODUÇÃO DA EQUIPE | D156: 1 | E156: CUSTO | H156: =H155 -> 6906.77
A157: TOTAL - R$ | H157: =H156/D156 -> 6906.77
A158: BDI % | H158: 1
A159: TOTAL DO SERVIÇO - R$ | H159: =H157*H158 -> 6906.77
A161: COMPOSIÇÃO DE PREÇO UNITÁRIO | H161: CPU011
A162: DESCRIÇÃO DO SERVIÇO | G162: DATA BASE: | H162: 2023-08-01
A163: TRANSPORTE DE CONCRETO ATÉ O LOCAL DE APLICAÇÃO COM CARRINHO DE MÃO, EXCLUSIVE APLICAÇÃO | G163: UNIDADE: | H163: m³Xm
A164: EQUIPAMENTOS
A165: BASE | B165: CÓDIGO | C165: DISCRIMINAÇÃO | D165: UNI | E165: QUANT. | F165: P.UN.PROD | G165: P.UN.IMPR | H165: P.TOTAL
A166: SICRO | B166: E9071 | C166: TRANSPORTADOR MANUAL CARRINHO DE MÃO COM CAPACIDADE DE 80 L | D166: h | E166: 0.06831 | F166: 0.47 | G166: 0.69 | H166: =(E166*G166)+(E166*F166) -> 0.0792396
A167: SUB-TOTAL | H167: =SUM(H166) -> 0.0792396
A168: SERVIÇOS - COMPOSIÇÕES AUXILIARES
A169: BASE | B169: CÓDIGO | C169: DISCRIMINAÇÃO | D169: UNI | E169: QUANT. | G169: P.UNIT. | H169: P.TOTAL
A170: SINAPI | B170: 100205 | C170: TRANSPORTE HORIZONTAL COM JERICA DE 60 L, DE MASSA/ GRANEL | D170: m³km | E170: 0.001 | G170: 1394.13 | H170: =E170*G170 -> 1.39413
A171: SUB-TOTAL | H171: =SUM(H170:H170) -> 1.39413
A172: PRODUÇÃO DA EQUIPE | D172: 1 | E172: CUSTO | H172: =H171+H167 -> 1.4733696
A173: TOTAL - R$ | H173: =H172/D172 -> 1.4733696
A174: BDI % | H174: 1
A175: TOTAL DO SERVIÇO - R$ | H175: =H173*H174 -> 1.4733696
A177: COMPOSIÇÃO DE PREÇO UNITÁRIO | H177: CPU012
A178: DESCRIÇÃO DO SERVIÇO | G178: DATA BASE: | H178: 2023-04-01
A179: ESCARIFICAÇÃO COM REMOÇÃO MANUAL DE ARGAMASSA DETERIORADA, SEM REAPROVEIAMENTO, EXCLUSIVE RECOMPOSIÇÃO | G179: UNIDADE: | H179: m²
A180: MÃO DE OBRA
A181: BASE | B181: CÓDIGO | C181: DISCRIMINAÇÃO | D181: UNI | E181: QUANT. | G181: P.UNIT. | H181: P.TOTAL
A182: SINAPI | B182: 88316 | C182: SERVENTE COM ENCARGOS COMPLEMENTARES | D182: h | E182: 0.55 | G182: 20.41 | H182: =E182*G182 -> 11.2255
A183: SINAPI | B183: 88309 | C183: PEDREIRO COM ENCARGOS COMPLEMENTARES | D183: h | E183: 0.055 | G183: 28.15 | H183: =E183*G183 -> 1.54825
A184: SUB-TOTAL | H184: =SUM(H182:H183) -> 12.77375
A185: PRODUÇÃO DA EQUIPE | D185: 1 | E185: CUSTO | H185: =H184 -> 12.77375
A186: TOTAL - R$ | H186: =H185/D185 -> 12.77375
A187: BDI % | H187: 1
A188: TOTAL DO SERVIÇO - R$ | H188: =H186*H187 -> 12.77375
A190: COMPOSIÇÃO DE PREÇO UNITÁRIO | H190: CPU013
A191: DESCRIÇÃO DO SERVIÇO | G191: DATA BASE: | H191: 2023-08-01
A192: RAMPA PROVISÓRIA PARA ACESSO DE EQIPAMENTOS AO FUNDO DOS TANQUES, EXECUTADA EM TALUDES, INCLUINDO DESCARGA E COMPACTAÇÃO, EXCLUSIVE ESCAVAÇÃO E TRANSPORTE DO SOLO | G192: UNIDADE: | H192: m³
A193: EQUIPAMENTO
A194: BASE | B194: CÓDIGO | C194: DISCRIMINAÇÃO | D194: UNID. | E194: QUANT. | F194: P.UN.PROD | G194: P.UN.IMPR | H194: P.TOTAL
A195: SINAPI | B195: 5678 | C195: RETROESCAVADEIRA SOBRE RODAS COM CARREGADEIRA, TRAÇÃO 4X4, POTÊNCIA LÍQ. 88 HP, CAÇAMBA CARREG. CAP. MÍN. 1 M3, CAÇAMBA RETRO CAP. 0,26 M3, PESO OPERACIONAL MÍN. 6.674 KG, PROFUNDIDADE ESCAVAÇÃO MÁX. 4,37 M - CHP DIURNO. | D195: h | E195: 0.1 | F195: 155.17 | G195: 149.09 | H195: =E195*F195+E195*G195 -> 30.426
A196: SUB-TOTAL | H196: =SUM(H195:H195) -> 30.426
A197: PRODUÇÃO DA EQUIPE | D197: 1 | E197: CUSTO | H197: =H196 -> 30.426
A198: TOTAL - R$ | H198: =H197/D197 -> 30.426
A199: BDI % | H199: 1
A200: TOTAL DO SERVIÇO - R$ | H200: =H198*H199 -> 30.426
A202: COMPOSIÇÃO DE PREÇO UNITÁRIO | H202: CPU014
A203: DESCRIÇÃO DO SERVIÇO | G203: DATA BASE: | H203: 2023-08-01
A204: RETIRADA DE RAMPA PROVISÓRIA PARA ACESSO DE EQUIPAMENTOS AO FUNDO DOS TANQUES | G204: UNIDADE: | H204: m³
A205: EQUIPAMENTO
A206: BASE | B206: CÓDIGO | C206: DISCRIMINAÇÃO | D206: UNID. | E206: QUANT. | F206: P.UN.PROD | G206: P.UN.IMPR | H206: P.TOTAL
A207: SINAPI | B207: 5678 | C207: RETROESCAVADEIRA SOBRE RODAS COM CARREGADEIRA, TRAÇÃO 4X4, POTÊNCIA LÍQ. 88 HP, CAÇAMBA CARREG. CAP. MÍN. 1 M3, CAÇAMBA RETRO CAP. 0,26 M3, PESO OPERACIONAL MÍN. 6.674 KG, PROFUNDIDADE ESCAVAÇÃO MÁX. 4,37 M - CHP DIURNO. | D207: h | E207: 0.05 | F207: 155.17 | G207: 149.09 | H207: =E207*F207+E207*G207 -> 15.213
A208: SUB-TOTAL | H208: =SUM(H207:H207) -> 15.213
A209: PRODUÇÃO DA EQUIPE | D209: 1 | E209: CUSTO | H209: =H208 -> 15.213
A210: TOTAL - R$ | H210: =H209/D209 -> 15.213
A211: BDI % | H211: 1
A212: TOTAL DO SERVIÇO - R$ | H212: =H210*H211 -> 15.213

Sheet BDI_Serviços
A1: MINITÉRIO DA INTEGRAÇÃO E DO DESENVOLVIMENTO REGIONAL
A2: COMPANHIA DE DESENVOLVIMENTO DOS VALES DO SÃO FRANCISCO E DO PARNAÍBA
A3: 1° SUPERINTENDÊNCIA REGIONAL
A4: DETALHAMENTO DO BDI - SERVIÇOS
A5: Local: | B5: TRÊS MARIAS-MG | F5: BDI Serviços: | G5: =B32 -> 0.2665
A6: Data: | B6: 2024-10-11 | F6: BDI Materiais: | G6: 0.153
A7: Bases: | B7: SINAPI 08-2024 | SICRO 04-2024 | SETOP 07-2024 | F7: Revisão: | G7: 0
A9: TIPO DE OBRA: | B9: CONSTRUÇÃO DE REDES DE ABASTECIMENTO DE ÁGUA, COLETA DE ESGOTO E CONSTRUÇÕES CORRELATAS
A11: ITEM | B11: DESCRIÇÃO DOS SERVIÇOS | D11: %
A14: 1 | B14: ADMINISTRAÇÃO CENTRAL | D14: 0.0446 | E14: a = | F14: Administração Central
A16: 2 | B16: IMPOSTOS E TAXAS | D16: =SUM(D17:D19) -> 0.0865 | E16: i = | F16: Impostos
A17: 2.1 | B17: ISS | D17: 0.05
A18: 2.2 | B18: PIS | D18: 0.0065
A19: 2.3 | B19: Cofins | D19: 0.03
A21: 3 | B21: SEGUROS, RISCOS E GARANTIAS | D21: 0.0188 | E21: r = | F21: Seguros, Riscos e Garantias
A22: 3.1 | B22: Seguros e garantias
A23: 3.2 | B23: Riscos
A25: 4 | B25: DESPESAS FINANCEIRAS | D25: 0.0099 | E25: df = | F25: Despesas financeiras
A27: 5 | B27: LUCRO | D27: 0.07723 | E27: l = | F27: Lucro
A30: BDI = (((1+a+r)*(1+df)*(1+l))/(1-i))-1
A31: BDI = | B31: =((((1+D14+D21)*(1+D25)*(1+D27))/(1-D16))-1) -> 0.2664117057 | C31: calculado
A32: BDI = | B32: 0.2665 | C32: adotado
A34: *Fórmula BDI conforme Acórdão 2622/2013 do TCU

Sheet BDI_Fornecimento
A1: MINITÉRIO DA INTEGRAÇÃO E DO DESENVOLVIMENTO REGIONAL
A2: COMPANHIA DE DESENVOLVIMENTO DOS VALES DO SÃO FRANCISCO E DO PARNAÍBA
A3: 1° SUPERINTENDÊNCIA REGIONAL
A4: DETALHAMENTO DO BDI - MATERIAIS
A5: Local: | B5: TRÊS MARIAS- MG | F5: BDI Serviços: | G5: =BDI_Serviços!B32 -> 0.2665
A6: Data: | B6: 2024-10-11 | F6: BDI Materiais: | G6: =$B$32 -> 0.153
A7: Bases: | B7: SINAPI 08-2024 | SICRO 04-2024 | SETOP 07-2024 | F7: Revisão: | G7: 0
A10: ITEM | B10: DESCRIÇÃO DOS SERVIÇOS | D10: %
A13: 1 | B13: ADMINISTRAÇÃO CENTRAL | D13: 3.45 | E13: a = | F13: Administração Central
A15: 2 | B15: IMPOSTOS E TAXAS | D15: =SUM(D16:D18) -> 3.65 | E15: i = | F15: Impostos
A16: 2.1 | B16: ISS | D16: 0
A17: 2.2 | B17: PIS | D17: 0.65
A18: 2.3 | B18: Cofins | D18: 3
A20: 3 | B20: SEGUROS, RISCOS E GARANTIAS | D20: =SUM(D21:D22) -> 1.33 | E20: r = | F20: Seguros, Riscos e Garantias
A21: 3.1 | B21: Seguros e garantias | D21: 0.48
A22: 3.2 | B22: Riscos | D22: 0.85
A24: 4 | B24: DESPESAS FINANCEIRAS | D24: 0.85 | E24: df = | F24: Despesas financeiras
A26: 5 | B26: LUCRO | D26: 5.11 | E26: l = | F26: Lucro
A30: BDI = (((1+a+r)*(1+df)*(1+l))/(1-i))-1
A31: BDI = | B31: =((((1+D13/100+D20/100)*(1+D24/100)*(1+D26/100))/(1-D15/100))-1) -> 0.1527804794 | C31: calculado
A32: BDI = | B32: 0.153 | C32: adotado
A34: *Fórmula BDI conforme Acórdão 2622/2013 do TCU
